[Event "*** Titled Tuesday Blitz"]
[Site "Chess.com"]
[Date "2019.06.04"]
[Round "6"]
[White "GMHess"]
[Black "xamax2000"]
[Result "1-0"]
[WhiteElo "2668"]
[BlackElo "2656"]
[TimeControl "180+2"]
[EndTime "14:17:57 PDT"]
[Termination "GMHess won by checkmate"]

1. b3 {[%clk 0:03:01.9]} 1... d5 {[%clk 0:03:00.3]} 2. Bb2 {[%clk 0:03:02]} 2...
Bg4 {[%clk 0:03:01.7]} 3. h3 {[%clk 0:03:02.9]} 3... Bh5 {[%clk 0:03:02.2]} 4.
d3 {[%clk 0:02:59.4]} 4... e6 {[%clk 0:03:00]} 5. Nd2 {[%clk 0:02:54.4]} 5... c5
{[%clk 0:02:55.1]} 6. g4 {[%clk 0:02:47.8]} 6... Bg6 {[%clk 0:02:55.8]} 7. Bg2
{[%clk 0:02:48.1]} 7... Nc6 {[%clk 0:02:56.9]} 8. c4 {[%clk 0:02:47.5]} 8... h5
{[%clk 0:02:48.2]} 9. cxd5 {[%clk 0:02:37.5]} 9... exd5 {[%clk 0:02:47.7]} 10.
Ngf3 {[%clk 0:02:39.2]} 10... hxg4 {[%clk 0:02:47.6]} 11. hxg4 {[%clk
0:02:41.1]} 11... Rxh1+ {[%clk 0:02:48.7]} 12. Bxh1 {[%clk 0:02:43]} 12... d4
{[%clk 0:02:43]} 13. a3 {[%clk 0:02:38.7]} 13... Nf6 {[%clk 0:02:43]} 14. b4
{[%clk 0:02:33.7]} 14... cxb4 {[%clk 0:02:38.3]} 15. axb4 {[%clk 0:02:27.6]}
15... Bxb4 {[%clk 0:02:31.5]} 16. Qa4 {[%clk 0:02:26.6]} 16... Qd7 {[%clk
0:02:08.4]} 17. Kf1 {[%clk 0:02:03]} 17... Nxg4 {[%clk 0:01:07.6]} 18. Nb3
{[%clk 0:01:40.3]} 18... Bc3 {[%clk 0:00:38]} 19. Nc5 {[%clk 0:01:38.4]} 19...
Qe7 {[%clk 0:00:20.4]} 20. Bxc3 {[%clk 0:01:27.3]} 20... dxc3 {[%clk 0:00:18.7]}
21. Nxb7 {[%clk 0:01:28]} 21... Qxb7 {[%clk 0:00:18.5]} 22. Nd4 {[%clk
0:01:23.2]} 22... Qb2 {[%clk 0:00:09.3]} 23. Qxc6+ {[%clk 0:01:23]} 23... Ke7
{[%clk 0:00:09.7]} 24. Qc7+ {[%clk 0:01:19.3]} 24... Kf6 {[%clk 0:00:09.5]} 25.
Qf4+ {[%clk 0:01:20.3]} 25... Ke7 {[%clk 0:00:10.7]} 26. Re1 {[%clk 0:01:14.3]}
26... Rh8 {[%clk 0:00:11.1]} 27. Nc6+ {[%clk 0:01:13.3]} 27... Ke8 {[%clk
0:00:08.8]} 28. Bf3 {[%clk 0:00:50.2]} 28... Nf6 {[%clk 0:00:07.8]} 29. Qd6
{[%clk 0:00:47.4]} 29... Qb7 {[%clk 0:00:07.1]} 30. Qd8# {[%clk 0:00:47.7]} 1-0

[Event "*** Titled Tuesday Blitz"]
[Site "Chess.com"]
[Date "2019.06.04"]
[Round "6"]
[White "TheRigos"]
[Black "toog"]
[Result "0-1"]
[WhiteElo "2427"]
[BlackElo "2339"]
[TimeControl "180+2"]
[EndTime "14:17:58 PDT"]
[Termination "toog won on time"]

1. e4 {[%clk 0:03:01.9]} 1... c5 {[%clk 0:02:56.9]} 2. Nf3 {[%clk 0:03:02]} 2...
d6 {[%clk 0:02:58.5]} 3. d4 {[%clk 0:02:57.2]} 3... cxd4 {[%clk 0:03:00.4]} 4.
Nxd4 {[%clk 0:02:58.8]} 4... Nf6 {[%clk 0:03:02.3]} 5. Nc3 {[%clk 0:02:59.4]}
5... a6 {[%clk 0:03:03.7]} 6. Be2 {[%clk 0:03:00.2]} 6... e6 {[%clk 0:03:03.5]}
7. O-O {[%clk 0:03:00.6]} 7... Qc7 {[%clk 0:03:02.3]} 8. Be3 {[%clk 0:03:01.7]}
8... b5 {[%clk 0:03:01.4]} 9. Bf3 {[%clk 0:02:33]} 9... Bb7 {[%clk 0:02:55.9]}
10. a3 {[%clk 0:02:34.4]} 10... Nbd7 {[%clk 0:02:56.4]} 11. Re1 {[%clk
0:02:28.7]} 11... Ne5 {[%clk 0:02:56.6]} 12. Qe2 {[%clk 0:02:21.1]} 12... Be7
{[%clk 0:02:54.8]} 13. Rad1 {[%clk 0:02:21.7]} 13... O-O {[%clk 0:02:54.7]} 14.
g3 {[%clk 0:02:17.7]} 14... Nxf3+ {[%clk 0:02:50.6]} 15. Qxf3 {[%clk 0:02:16.3]}
15... Nd7 {[%clk 0:02:48.8]} 16. Qh5 {[%clk 0:02:09.9]} 16... g6 {[%clk
0:02:37.8]} 17. Qe2 {[%clk 0:02:03.2]} 17... Ne5 {[%clk 0:02:36.2]} 18. h4
{[%clk 0:02:02.5]} 18... Rfd8 {[%clk 0:02:33.1]} 19. h5 {[%clk 0:02:01.5]} 19...
Bf6 {[%clk 0:02:32]} 20. Bc1 {[%clk 0:01:43.1]} 20... Rac8 {[%clk 0:02:28.6]}
21. Kg2 {[%clk 0:01:34.9]} 21... Kg7 {[%clk 0:02:11.2]} 22. Rh1 {[%clk
0:01:23.9]} 22... Qb8 {[%clk 0:02:02.9]} 23. Bh6+ {[%clk 0:01:19.7]} 23... Kg8
{[%clk 0:02:02.4]} 24. Nf3 {[%clk 0:00:53.6]} 24... Qa8 {[%clk 0:01:56.1]} 25.
Rde1 {[%clk 0:00:32.3]} 25... Rc4 {[%clk 0:01:49.4]} 26. Nd2 {[%clk 0:00:25.7]}
26... Rxc3 {[%clk 0:01:43.6]} 27. bxc3 {[%clk 0:00:26.2]} 27... Rc8 {[%clk
0:01:44.5]} 28. Qe3 {[%clk 0:00:22.5]} 28... Nc4 {[%clk 0:01:31.1]} 29. Nxc4
{[%clk 0:00:16.3]} 29... Rxc4 {[%clk 0:01:33]} 30. hxg6 {[%clk 0:00:09.4]} 30...
Bxe4+ {[%clk 0:01:20.6]} 31. f3 {[%clk 0:00:10.3]} 31... Bxg6 {[%clk 0:01:21]}
32. Re2 {[%clk 0:00:02.1]} 32... Rxc3 {[%clk 0:01:19.4]} 33. Qd2 {[%clk
0:00:02.8]} 33... Qxf3+ {[%clk 0:01:18.5]} 0-1

[Event "*** Titled Tuesday Blitz"]
[Site "Chess.com"]
[Date "2019.06.04"]
[Round "6"]
[White "Aknok"]
[Black "velemajstor767276"]
[Result "0-1"]
[WhiteElo "2415"]
[BlackElo "2530"]
[TimeControl "180+2"]
[EndTime "14:17:59 PDT"]
[Termination "velemajstor767276 won on time"]

1. d4 {[%clk 0:03:01.9]} 1... e6 {[%clk 0:03:01.1]} 2. c4 {[%clk 0:03:02]} 2...
d5 {[%clk 0:03:01.3]} 3. Nf3 {[%clk 0:03:02.2]} 3... c6 {[%clk 0:03:02.6]} 4.
Nc3 {[%clk 0:03:02.9]} 4... dxc4 {[%clk 0:03:02.9]} 5. a4 {[%clk 0:03:03.5]}
5... Bb4 {[%clk 0:03:03.1]} 6. e3 {[%clk 0:03:04.2]} 6... b5 {[%clk 0:03:03.8]}
7. Bd2 {[%clk 0:03:04]} 7... a5 {[%clk 0:03:03.1]} 8. Rb1 {[%clk 0:03:04.5]}
8... Bb7 {[%clk 0:02:52.4]} 9. axb5 {[%clk 0:03:03.2]} 9... Bxc3 {[%clk
0:02:52.4]} 10. bxc3 {[%clk 0:03:05.1]} 10... cxb5 {[%clk 0:02:49.3]} 11. Rxb5
{[%clk 0:03:07]} 11... Ba6 {[%clk 0:02:49.7]} 12. Rb1 {[%clk 0:03:03.8]} 12...
Nf6 {[%clk 0:02:44.4]} 13. Bxc4 {[%clk 0:02:59.6]} 13... Bxc4 {[%clk 0:02:28.7]}
14. Qa4+ {[%clk 0:03:00.3]} 14... Qd7 {[%clk 0:02:27.3]} 15. Qxc4 {[%clk
0:03:00.6]} 15... O-O {[%clk 0:02:28]} 16. Ne5 {[%clk 0:02:51]} 16... Qd6 {[%clk
0:02:26.4]} 17. O-O {[%clk 0:02:47]} 17... Nbd7 {[%clk 0:02:23.8]} 18. Nxd7
{[%clk 0:02:42.8]} 18... Nxd7 {[%clk 0:02:25.7]} 19. Rb7 {[%clk 0:02:29.3]}
19... Rfc8 {[%clk 0:02:21.9]} 20. Qb5 {[%clk 0:02:28.5]} 20... Nc5 {[%clk
0:02:17.4]} 21. Rb6 {[%clk 0:02:06.5]} 21... Qd8 {[%clk 0:02:17.5]} 22. c4
{[%clk 0:01:24.5]} 22... Ne4 {[%clk 0:02:15.6]} 23. Bxa5 {[%clk 0:01:24.1]}
23... Nd6 {[%clk 0:02:15.4]} 24. Rxd6 {[%clk 0:00:19.8]} 24... Qxd6 {[%clk
0:02:17.3]} 25. c5 {[%clk 0:00:19.3]} 25... Qa6 {[%clk 0:02:16.7]} 26. Qxa6
{[%clk 0:00:16.8]} 26... Rxa6 {[%clk 0:02:18.6]} 27. Bb6 {[%clk 0:00:18]} 27...
Kf8 {[%clk 0:02:15.9]} 28. e4 {[%clk 0:00:15.1]} 28... Ra4 {[%clk 0:02:14.8]}
29. Rd1 {[%clk 0:00:14.6]} 29... Rca8 {[%clk 0:02:12.9]} 30. Kf1 {[%clk
0:00:08.1]} 30... Ra1 {[%clk 0:02:12.7]} 31. Rxa1 {[%clk 0:00:07.7]} 31... Rxa1+
{[%clk 0:02:13.6]} 32. Ke2 {[%clk 0:00:09.6]} 32... Ke7 {[%clk 0:02:11.8]} 33.
d5 {[%clk 0:00:07.6]} 33... Kd7 {[%clk 0:02:11.1]} 34. c6+ {[%clk 0:00:05.3]}
34... Kd6 {[%clk 0:02:10.4]} 35. c7 {[%clk 0:00:05.9]} 35... Kd7 {[%clk
0:02:06.5]} 36. f4 {[%clk 0:00:05]} 36... exd5 {[%clk 0:02:05.4]} 37. exd5
{[%clk 0:00:06.9]} 37... Ra6 {[%clk 0:02:04.9]} 38. Bd4 {[%clk 0:00:05.1]} 38...
f6 {[%clk 0:02:06.2]} 39. Kf3 {[%clk 0:00:03.4]} 39... Kxc7 {[%clk 0:02:03.8]}
40. g4 {[%clk 0:00:03.3]} 40... Kd6 {[%clk 0:02:04.1]} 41. Ke4 {[%clk
0:00:04.1]} 41... Ra4 {[%clk 0:01:57.9]} 42. h4 {[%clk 0:00:04.1]} 42... g6
{[%clk 0:01:55.8]} 0-1

[Event "*** Titled Tuesday Blitz"]
[Site "Chess.com"]
[Date "2019.06.04"]
[Round "6"]
[White "Farrukh_Amonatov"]
[Black "jefferyx"]
[Result "0-1"]
[WhiteElo "2817"]
[BlackElo "2912"]
[TimeControl "180+2"]
[EndTime "14:18:13 PDT"]
[Termination "jefferyx won on time"]

1. e4 {[%clk 0:03:01.9]} 1... c6 {[%clk 0:02:59.9]} 2. d4 {[%clk 0:03:02]} 2...
d5 {[%clk 0:03:01.6]} 3. e5 {[%clk 0:02:57.3]} 3... Bf5 {[%clk 0:03:02.9]} 4.
Nf3 {[%clk 0:02:55.8]} 4... e6 {[%clk 0:03:04.4]} 5. Be2 {[%clk 0:02:57.1]} 5...
Ne7 {[%clk 0:03:05.9]} 6. O-O {[%clk 0:02:57.7]} 6... Ng6 {[%clk 0:03:07.5]} 7.
h3 {[%clk 0:02:56.6]} 7... Nd7 {[%clk 0:03:06.2]} 8. g4 {[%clk 0:02:27.7]} 8...
Be4 {[%clk 0:03:07.2]} 9. Ng5 {[%clk 0:02:29.3]} 9... h5 {[%clk 0:02:04.2]} 10.
f3 {[%clk 0:02:11.8]} 10... hxg4 {[%clk 0:02:04.9]} 11. fxe4 {[%clk 0:02:09.9]}
11... Ndxe5 {[%clk 0:01:48.5]} 12. dxe5 {[%clk 0:02:05.5]} 12... Bc5+ {[%clk
0:01:49.5]} 13. Kh1 {[%clk 0:01:51.5]} 13... Nxe5 {[%clk 0:01:50.8]} 14. Bxg4
{[%clk 0:01:35.1]} 14... dxe4 {[%clk 0:01:42.2]} 15. Qe2 {[%clk 0:01:25.1]}
15... e3 {[%clk 0:01:39.7]} 16. Ne4 {[%clk 0:01:06.7]} 16... Qh4 {[%clk
0:01:40.4]} 17. Kg2 {[%clk 0:00:29.7]} 17... f5 {[%clk 0:01:10.2]} 18. Nxc5
{[%clk 0:00:30]} 18... fxg4 {[%clk 0:01:06.3]} 19. Qxe3 {[%clk 0:00:30.6]} 19...
O-O-O {[%clk 0:01:04.9]} 20. Nc3 {[%clk 0:00:21.1]} 20... Rdf8 {[%clk
0:00:35.8]} 21. Rxf8+ {[%clk 0:00:16]} 21... Rxf8 {[%clk 0:00:37.7]} 22. Bd2
{[%clk 0:00:17]} 22... Rf3 {[%clk 0:00:19.6]} 23. Qxe5 {[%clk 0:00:17.5]} 23...
Qf2+ {[%clk 0:00:20.5]} 24. Kh1 {[%clk 0:00:09.1]} 24... Rxh3+ {[%clk
0:00:22.4]} 0-1

[Event "*** Titled Tuesday Blitz"]
[Site "Chess.com"]
[Date "2019.06.04"]
[Round "6"]
[White "Gentlejimmy7"]
[Black "MagnutssCarleson"]
[Result "1-0"]
[WhiteElo "2546"]
[BlackElo "2298"]
[TimeControl "180+2"]
[EndTime "14:18:18 PDT"]
[Termination "Gentlejimmy7 won by checkmate"]

1. d4 {[%clk 0:03:01.9]} 1... Nf6 {[%clk 0:03:00.5]} 2. Nf3 {[%clk 0:02:51]}
2... g6 {[%clk 0:03:01.8]} 3. g3 {[%clk 0:02:49.9]} 3... Bg7 {[%clk 0:03:01.3]}
4. Bg2 {[%clk 0:02:51.8]} 4... d6 {[%clk 0:03:02.7]} 5. O-O {[%clk 0:02:53.7]}
5... O-O {[%clk 0:03:04]} 6. b3 {[%clk 0:02:55.3]} 6... d5 {[%clk 0:03:01.5]} 7.
Bb2 {[%clk 0:02:53.7]} 7... Ne4 {[%clk 0:03:01.8]} 8. c4 {[%clk 0:02:50.5]} 8...
c6 {[%clk 0:03:00.5]} 9. Nbd2 {[%clk 0:02:50.9]} 9... Bf5 {[%clk 0:03:00.3]} 10.
e3 {[%clk 0:02:51.3]} 10... Qa5 {[%clk 0:02:44.1]} 11. Nxe4 {[%clk 0:02:47.3]}
11... Bxe4 {[%clk 0:02:46]} 12. a3 {[%clk 0:02:46]} 12... Nd7 {[%clk 0:02:44.2]}
13. Qe2 {[%clk 0:02:43.8]} 13... Rad8 {[%clk 0:02:39.9]} 14. Rfd1 {[%clk
0:02:44.7]} 14... Rfe8 {[%clk 0:02:40.4]} 15. Rac1 {[%clk 0:02:45.2]} 15... e5
{[%clk 0:02:33.7]} 16. cxd5 {[%clk 0:02:42.1]} 16... Bxd5 {[%clk 0:02:33.4]} 17.
b4 {[%clk 0:02:40]} 17... Qa4 {[%clk 0:02:32.1]} 18. dxe5 {[%clk 0:02:40.3]}
18... Bxf3 {[%clk 0:02:17.3]} 19. Bxf3 {[%clk 0:02:33.2]} 19... Nxe5 {[%clk
0:02:17.6]} 20. Bg2 {[%clk 0:02:30]} 20... Qb3 {[%clk 0:02:11.4]} 21. Bd4 {[%clk
0:02:08.8]} 21... Qxa3 {[%clk 0:02:08.1]} 22. b5 {[%clk 0:01:56.2]} 22... cxb5
{[%clk 0:01:54.9]} 23. Qxb5 {[%clk 0:01:58.1]} 23... b6 {[%clk 0:01:55.6]} 24.
Bxe5 {[%clk 0:01:47.5]} 24... Bxe5 {[%clk 0:01:54.2]} 25. Bd5 {[%clk 0:01:43.6]}
25... Qe7 {[%clk 0:01:42.2]} 26. Kg2 {[%clk 0:01:35]} 26... Kg7 {[%clk
0:01:41.8]} 27. h4 {[%clk 0:01:35.3]} 27... Rc8 {[%clk 0:01:39.6]} 28. Bc6
{[%clk 0:01:23.2]} 28... Red8 {[%clk 0:01:38.6]} 29. Rxd8 {[%clk 0:01:20.8]}
29... Rxd8 {[%clk 0:01:40.5]} 30. Rc2 {[%clk 0:01:18.3]} 30... Bf6 {[%clk
0:01:38.5]} 31. Bf3 {[%clk 0:01:18]} 31... Qe5 {[%clk 0:01:28.7]} 32. Qa6 {[%clk
0:01:11]} 32... Rd7 {[%clk 0:01:28.5]} 33. Qc8 {[%clk 0:01:09.7]} 33... Qd6
{[%clk 0:01:21.7]} 34. h5 {[%clk 0:01:06.5]} 34... Rd8 {[%clk 0:01:17.6]} 35.
Qb7 {[%clk 0:01:06.6]} 35... Rd7 {[%clk 0:01:18.2]} 36. Qa8 {[%clk 0:01:07.6]}
36... b5 {[%clk 0:01:07.3]} 37. Rc8 {[%clk 0:01:07.1]} 37... b4 {[%clk
0:01:04.2]} 38. Rg8+ {[%clk 0:01:02.9]} 38... Kh6 {[%clk 0:01:04.7]} 39. hxg6
{[%clk 0:00:58.1]} 39... fxg6 {[%clk 0:01:01.2]} 40. Qc8 {[%clk 0:00:57.1]}
40... b3 {[%clk 0:00:56.5]} 41. Qc1 {[%clk 0:00:53.3]} 41... b2 {[%clk
0:00:56.6]} 42. Qh1+ {[%clk 0:00:51.6]} 42... Kg5 {[%clk 0:00:57]} 43. Qh5#
{[%clk 0:00:40.4]} 1-0

[Event "*** Titled Tuesday Blitz"]
[Site "Chess.com"]
[Date "2019.06.04"]
[Round "6"]
[White "VeraNebolsina"]
[Black "ENEASZ"]
[Result "1/2-1/2"]
[WhiteElo "2373"]
[BlackElo "2507"]
[TimeControl "180+2"]
[EndTime "14:18:22 PDT"]
[Termination "Game drawn by agreement"]

1. e4 {[%clk 0:03:01.9]} 1... d6 {[%clk 0:02:52.8]} 2. d4 {[%clk 0:03:02.5]}
2... Nf6 {[%clk 0:02:53.5]} 3. Nc3 {[%clk 0:03:03.1]} 3... e5 {[%clk 0:02:53.9]}
4. Nf3 {[%clk 0:03:03.6]} 4... Nbd7 {[%clk 0:02:54.4]} 5. Bc4 {[%clk 0:03:02.8]}
5... Be7 {[%clk 0:02:52.2]} 6. O-O {[%clk 0:03:03.1]} 6... O-O {[%clk
0:02:53.1]} 7. Re1 {[%clk 0:03:01.5]} 7... a6 {[%clk 0:02:53.4]} 8. a4 {[%clk
0:03:01.6]} 8... b6 {[%clk 0:02:54.9]} 9. Nd5 {[%clk 0:02:22.7]} 9... Bb7 {[%clk
0:02:53.6]} 10. Nxf6+ {[%clk 0:02:21.1]} 10... Bxf6 {[%clk 0:02:31.2]} 11. c3
{[%clk 0:02:13.8]} 11... Re8 {[%clk 0:02:06.6]} 12. d5 {[%clk 0:02:09.5]} 12...
g6 {[%clk 0:01:48]} 13. b4 {[%clk 0:01:58.6]} 13... Bg7 {[%clk 0:01:47.8]} 14.
a5 {[%clk 0:01:58.5]} 14... h6 {[%clk 0:01:44.6]} 15. axb6 {[%clk 0:01:54.8]}
15... cxb6 {[%clk 0:01:46.5]} 16. Bf1 {[%clk 0:01:51.3]} 16... f5 {[%clk
0:01:35.9]} 17. c4 {[%clk 0:01:47.3]} 17... fxe4 {[%clk 0:01:18.8]} 18. Nd2
{[%clk 0:01:47.9]} 18... b5 {[%clk 0:01:14.8]} 19. Nxe4 {[%clk 0:01:43.3]} 19...
Nf6 {[%clk 0:01:13.9]} 20. Nxf6+ {[%clk 0:01:39.3]} 20... Qxf6 {[%clk
0:01:11.2]} 21. cxb5 {[%clk 0:01:40.4]} 21... e4 {[%clk 0:01:04.5]} 22. Ra5
{[%clk 0:01:33.6]} 22... axb5 {[%clk 0:01:00.9]} 23. Bxb5 {[%clk 0:01:32.7]}
23... Rf8 {[%clk 0:00:59.5]} 24. Be3 {[%clk 0:01:32.6]} 24... Qc3 {[%clk
0:00:52.3]} 25. Bc6 {[%clk 0:01:08.1]} 25... Bxc6 {[%clk 0:00:49.8]} 26. dxc6
{[%clk 0:01:08.4]} 26... Qxc6 {[%clk 0:00:40.6]} 27. Qd5+ {[%clk 0:01:05.6]}
27... Qxd5 {[%clk 0:00:41.1]} 28. Rxd5 {[%clk 0:01:07.1]} 28... Be5 {[%clk
0:00:26]} 29. g3 {[%clk 0:00:57.8]} 29... g5 {[%clk 0:00:21.1]} 30. Re2 {[%clk
0:00:52.2]} 30... Rfb8 {[%clk 0:00:20.8]} 31. Bd4 {[%clk 0:00:49]} 31... Rxb4
{[%clk 0:00:15]} 32. Bxe5 {[%clk 0:00:49.2]} 32... dxe5 {[%clk 0:00:16.4]} 33.
Rxe5 {[%clk 0:00:50.5]} 33... Raa4 {[%clk 0:00:17.5]} 34. Kg2 {[%clk 0:00:50.6]}
34... Kf7 {[%clk 0:00:17.8]} 35. f3 {[%clk 0:00:46.2]} 35... exf3+ {[%clk
0:00:18.5]} 36. Kxf3 {[%clk 0:00:47]} 1/2-1/2

[Event "*** Titled Tuesday Blitz"]
[Site "Chess.com"]
[Date "2019.06.04"]
[Round "6"]
[White "Polish_fighter3000"]
[Black "Grandelicious"]
[Result "1-0"]
[WhiteElo "3013"]
[BlackElo "2769"]
[TimeControl "180+2"]
[EndTime "14:18:26 PDT"]
[Termination "Polish_fighter3000 won by resignation"]

1. e4 {[%clk 0:03:01.9]} 1... c5 {[%clk 0:03:01]} 2. Nf3 {[%clk 0:03:02.7]} 2...
d6 {[%clk 0:03:02.2]} 3. c3 {[%clk 0:03:03.8]} 3... Nf6 {[%clk 0:03:00.3]} 4.
Bd3 {[%clk 0:03:04]} 4... g6 {[%clk 0:02:55.4]} 5. h3 {[%clk 0:03:03.7]} 5...
Bg7 {[%clk 0:02:55.9]} 6. Bc2 {[%clk 0:03:05.2]} 6... e5 {[%clk 0:02:57.2]} 7.
d4 {[%clk 0:03:03.1]} 7... cxd4 {[%clk 0:02:58.1]} 8. cxd4 {[%clk 0:03:05]} 8...
exd4 {[%clk 0:03:00]} 9. O-O {[%clk 0:03:05.9]} 9... O-O {[%clk 0:03:01]} 10.
Nxd4 {[%clk 0:03:07.3]} 10... Nc6 {[%clk 0:03:01.9]} 11. Nxc6 {[%clk 0:02:54.2]}
11... bxc6 {[%clk 0:03:03.8]} 12. Nc3 {[%clk 0:02:55.6]} 12... Re8 {[%clk
0:02:51.2]} 13. Rb1 {[%clk 0:02:50]} 13... d5 {[%clk 0:02:45.8]} 14. exd5 {[%clk
0:02:50]} 14... Nxd5 {[%clk 0:02:47.7]} 15. Nxd5 {[%clk 0:02:48.2]} 15... Qxd5
{[%clk 0:02:49.6]} 16. Qxd5 {[%clk 0:02:09.4]} 16... cxd5 {[%clk 0:02:51.5]} 17.
Bd3 {[%clk 0:02:10.6]} 17... a5 {[%clk 0:02:46.6]} 18. Rd1 {[%clk 0:02:11.1]}
18... a4 {[%clk 0:02:30]} 19. b4 {[%clk 0:02:01.1]} 19... axb3 {[%clk
0:02:28.1]} 20. axb3 {[%clk 0:02:03]} 20... Ba6 {[%clk 0:02:06.1]} 21. Bxa6
{[%clk 0:01:53.7]} 21... Rxa6 {[%clk 0:02:08]} 22. Be3 {[%clk 0:01:55.1]} 22...
Ra5 {[%clk 0:02:08]} 23. b4 {[%clk 0:01:47.2]} 23... Rb5 {[%clk 0:02:07.9]} 24.
Bc5 {[%clk 0:01:48.7]} 24... Reb8 {[%clk 0:01:34.5]} 25. Rxd5 {[%clk 0:01:35.3]}
25... Bc3 {[%clk 0:01:34.6]} 26. Bd6 {[%clk 0:01:29.9]} 26... Rxd5 {[%clk
0:01:03.3]} 27. Bxb8 {[%clk 0:01:28.1]} 27... Bd4 {[%clk 0:00:47.9]} 28. Bc7
{[%clk 0:00:57.6]} 28... Rf5 {[%clk 0:00:40.7]} 29. b5 {[%clk 0:00:58]} 29...
Rxf2 {[%clk 0:00:12.3]} 30. Kh1 {[%clk 0:00:58.4]} 30... Rc2 {[%clk 0:00:13.3]}
31. b6 {[%clk 0:00:58.6]} 31... Kg7 {[%clk 0:00:12.3]} 32. b7 {[%clk 0:00:56.4]}
32... Ba7 {[%clk 0:00:13.3]} 33. Be5+ {[%clk 0:00:57.7]} 33... f6 {[%clk
0:00:14.2]} 34. Ra1 {[%clk 0:00:52.6]} 34... fxe5 {[%clk 0:00:10.6]} 35. Rxa7
{[%clk 0:00:52.5]} 1-0

[Event "*** Titled Tuesday Blitz"]
[Site "Chess.com"]
[Date "2019.06.04"]
[Round "6"]
[White "marianokar"]
[Black "FMJoseHerrera"]
[Result "0-1"]
[WhiteElo "2424"]
[BlackElo "2610"]
[TimeControl "180+2"]
[EndTime "14:18:26 PDT"]
[Termination "FMJoseHerrera won by checkmate"]

1. d4 {[%clk 0:03:01.9]} 1... Nf6 {[%clk 0:03:00.8]} 2. Nf3 {[%clk 0:03:00.9]}
2... c5 {[%clk 0:03:01.7]} 3. d5 {[%clk 0:03:00]} 3... g6 {[%clk 0:03:02.5]} 4.
c4 {[%clk 0:02:55.2]} 4... b5 {[%clk 0:03:03.5]} 5. Qc2 {[%clk 0:02:53.4]} 5...
Bg7 {[%clk 0:03:04.5]} 6. e4 {[%clk 0:02:53.5]} 6... O-O {[%clk 0:03:05.6]} 7.
Nbd2 {[%clk 0:02:43.2]} 7... e6 {[%clk 0:03:04.5]} 8. dxe6 {[%clk 0:02:32.8]}
8... dxe6 {[%clk 0:02:59.4]} 9. cxb5 {[%clk 0:02:31.9]} 9... a6 {[%clk
0:02:56.3]} 10. a4 {[%clk 0:02:18.1]} 10... Bb7 {[%clk 0:02:55.3]} 11. h3 {[%clk
0:02:12.3]} 11... Nbd7 {[%clk 0:02:55.4]} 12. bxa6 {[%clk 0:02:11.8]} 12... Bxa6
{[%clk 0:02:42]} 13. Bxa6 {[%clk 0:02:11.8]} 13... Rxa6 {[%clk 0:02:43.9]} 14.
O-O {[%clk 0:02:12.6]} 14... Qa8 {[%clk 0:02:42.8]} 15. Ra2 {[%clk 0:01:53.4]}
15... Rb8 {[%clk 0:02:41.1]} 16. b3 {[%clk 0:01:51.3]} 16... c4 {[%clk
0:02:13.3]} 17. Qxc4 {[%clk 0:01:21]} 17... Rc6 {[%clk 0:02:12.2]} 18. Qe2
{[%clk 0:01:13.3]} 18... Nc5 {[%clk 0:02:11.7]} 19. Qe3 {[%clk 0:01:11.6]} 19...
Rc7 {[%clk 0:01:47.7]} 20. Ba3 {[%clk 0:01:09]} 20... Ncxe4 {[%clk 0:01:45.9]}
21. Nxe4 {[%clk 0:01:00.3]} 21... Nxe4 {[%clk 0:01:46.2]} 22. Nd2 {[%clk
0:00:34.1]} 22... Nc3 {[%clk 0:01:35.8]} 23. Bd6 {[%clk 0:00:19.6]} 23... Nd5
{[%clk 0:01:24]} 24. Qf3 {[%clk 0:00:16.6]} 24... Rc3 {[%clk 0:01:23.7]} 25. Qe4
{[%clk 0:00:12.7]} 25... Rd8 {[%clk 0:01:18.2]} 26. Bg3 {[%clk 0:00:11.6]} 26...
Qa7 {[%clk 0:01:13.7]} 27. Kh2 {[%clk 0:00:10.4]} 27... h5 {[%clk 0:01:11.7]}
28. h4 {[%clk 0:00:10.5]} 28... Nf6 {[%clk 0:01:12.2]} 29. Qe2 {[%clk
0:00:08.7]} 29... Ng4+ {[%clk 0:01:12.8]} 30. Kh1 {[%clk 0:00:10.3]} 30... Qb7
{[%clk 0:01:02.5]} 31. a5 {[%clk 0:00:10.8]} 31... Rdd3 {[%clk 0:00:55]} 32. a6
{[%clk 0:00:11.3]} 32... Qa7 {[%clk 0:00:54.3]} 33. Nc4 {[%clk 0:00:11]} 33...
Rxg3 {[%clk 0:00:53.5]} 34. fxg3 {[%clk 0:00:11.6]} 34... Rxg3 {[%clk
0:00:55.4]} 35. Nb6 {[%clk 0:00:10.9]} 35... Qe7 {[%clk 0:00:52.2]} 36. a7
{[%clk 0:00:11.3]} 36... Qxh4+ {[%clk 0:00:53.1]} 37. Kg1 {[%clk 0:00:12.3]}
37... Qh2# {[%clk 0:00:55]} 0-1